bitfinex-derivatives/quotes_ETHF0:USTF0_20260102
["timestamp","ask_amount","ask_price","bid_price","bid_amount"]
[1767348656413,0.16907348,3064.6,3063.3,0.44332815]
[1767348656615,0.16907348,3064.6,3063.4,1.97935114]
[1767348656811,0.16337,3064.4,3063.3,0.44332815]
[1767348657212,0.16337,3064.4,3063.4,1.97935114]
[1767348657406,0.16337,3064.4,3063.6,0.00489197]
[1767348657607,0.16337,3064.3,3063.6,0.00489197]
[1767348657808,0.16337,3064.3,3062.8,0.44248968]
[1767348658005,1.14012716,3064.2,3062.1,0.44248968]
[1767348658209,0.1634,3063.8,3062.3,0.44248968]
[1767348658703,0.1634,3063.8,3062.7,0.44738165]
[1767348660212,5.71871348,3064.6,3062.7,0.44738165]
[1767348660420,0.16337,3064.4,3062.9,0.44248968]
[1767348660614,0.16337,3064.3,3062.9,0.44248968]
[1767348660818,0.16337,3064.3,3063.3,0.44248968]
[1767348661527,1.14584064,3064.6,3062.8,0.44248968]
[1767348661714,0.16339,3064.1,3062.8,0.44248968]
[1767348662212,0.16339,3064.1,3063.0,1.97935114]
[1767348662409,0.16339,3064.1,3063.0,2.42184082]
[1767348664214,0.16339,3064.1,3063.1,0.44248968]
[1767348664412,0.00571348,3064.6,3063.5,2.42184082]
[1767348665321,0.00571348,3064.6,3063.6,0.44248968]
[1767348666821,0.16336,3064.5,3063.6,0.44248968]
[1767348667122,0.16336,3064.5,3062.7,0.00489197]
[1767348667123,0.16336,3064.5,3063.7,2.42184082]
[1767348667424,0.16337,3064.4,3063.7,2.42184082]
[1767348667620,0.16337,3064.3,3062.7,0.00489197]
[1767348668018,3.70574277,3064.6,3062.9,2.42184082]
[1767348668220,0.16339,3064.1,3062.7,2.42673279]
[1767348668516,0.16339,3064.1,3062.9,2.42184082]
[1767348668917,0.16907348,3064.6,3062.9,2.42184082]
[1767348669120,0.16907348,3064.6,3063.0,0.44248968]
[1767348669423,0.00571348,3064.6,3063.0,0.44248968]
[1767348669613,0.16338,3064.2,3063.2,2.42184082]
[1767348669808,0.00571348,3064.6,3063.2,2.42184082]
[1767348669809,0.16339,3064.1,3063.2,2.42184082]
[1767348670013,0.16339,3064.1,3063.0,0.44248968]
[1767348670221,0.16339,3064.1,3063.3,2.42184082]
[1767348670614,0.43374277,3064.6,3062.7,0.00489197]
[1767348670817,0.16339,3063.9,3062.8,0.9873412]
[1767348672521,0.16339,3063.9,3062.7,0.00489197]
[1767348672522,1.14012716,3064.2,3062.9,0.9873412]
[1767348672726,0.16342,3063.4,3062.7,0.00489197]
[1767348672928,0.16342,3063.4,3061.5,2.90939368]
[1767348673125,0.16342,3063.4,3062.6,1.43863139]
[1767348673926,0.00489197,3063.3,3062.7,0.00489197]
[1767348674221,0.00489197,3063.3,3062.7,1.97e-06]
[1767348674421,0.00489197,3063.3,3061.1,2.90939368]
[1767348674422,6.00489197,3063.3,3061.1,2.90939368]
[1767348674626,6.00489197,3063.3,3061.0,2.90939368]
[1767348674627,0.16345,3062.9,3061.0,2.90939368]
[1767348674830,0.16345,3062.9,3061.1,0.44248968]
[1767348675321,0.16345,3062.9,3061.7,0.00489197]
[1767348675524,8.079,3063.0,3061.1,0.44637518]
[1767348676323,1.14012716,3062.7,3061.1,0.0038855]
[1767348677623,0.16349,3062.2,3061.1,0.0038855]
[1767348677825,0.16349,3062.2,3060.6,0.44248968]
[1767348677826,0.16351,3061.8,3060.6,0.44248968]
[1767348678019,0.00490003,3061.5,3060.6,0.44248968]
[1767348678929,0.00490003,3061.5,3060.6,0.00269441]
[1767348679129,0.00490003,3061.5,3060.1,0.44248968]
[1767348679324,0.00490003,3061.5,3058.8,4.07710719]
[1767348679325,1.14012716,3061.2,3059.5,0.44248968]
[1767348679528,0.43292932,3061.5,3058.3,2.90939368]
[1767348679529,1.14012716,3059.8,3058.3,0.44248968]
[1767348679728,0.00490003,3059.4,3058.3,0.44248968]
[1767348680228,0.00835127,3059.4,3058.3,0.44583073]
[1767348680440,0.00835127,3059.4,3058.3,0.00334105]
[1767348680736,0.16366,3058.9,3056.7,0.05690808]
[1767348681439,0.00835127,3059.4,3057.1,4.34299679]
[1767348681440,3.696,3059.0,3057.1,4.34299679]
[1767348681630,3.696,3059.0,3057.1,4.34598474]
[1767348682130,4.815,3059.3,3057.1,4.34598474]
[1767348682534,4.815,3059.3,3057.2,0.44248968]
[1767348682835,4.815,3059.3,3057.4,0.44248968]
[1767348683235,0.17199127,3059.4,3057.6,0.44248968]
[1767348683430,4.815,3059.3,3057.6,0.44248968]
[1767348683626,0.17199127,3059.4,3057.6,0.44248968]
[1767348683826,0.17199127,3059.4,3057.8,0.44248968]
[1767348683827,0.00835127,3059.4,3057.8,0.44248968]
[1767348685938,4.82435127,3059.4,3057.8,0.44248968]
[1767348686837,0.00835127,3059.4,3057.8,0.44248968]
[1767348689334,0.00835127,3059.4,3057.9,4.26837847]
[1767348689539,0.16357,3060.6,3058.4,0.51177626]
[1767348689835,0.16358,3060.4,3058.5,0.51177626]
[1767348690032,0.16359,3060.3,3058.5,0.51177626]
[1767348690439,0.00490003,3059.7,3059.1,0.00490003]
[1767348691429,0.16609614,3060.3,3059.1,0.00490003]
[1767348692233,0.16609614,3060.3,3059.1,0.51667629]
[1767348692438,0.00250614,3060.3,3059.1,0.51667629]
[1767348693639,0.64477382,3061.3,3059.1,0.51667629]
[1767348693835,0.16354,3061.1,3059.1,0.51667629]
[1767348694041,0.16356,3060.8,3059.1,0.51667629]
[1767348694647,0.00490003,3060.3,3059.1,0.51667629]
[1767348695839,0.00490003,3060.3,3059.1,0.00490003]
[1767348696046,0.00490003,3060.3,3059.1,0.51667629]
[1767348696939,0.00490003,3060.3,3059.1,0.00490003]
[1767348697243,0.16359,3060.2,3059.1,0.00490003]
[1767348700543,0.1636,3060.0,3059.1,0.00490003]
[1767348703243,0.00490003,3060.3,3059.1,0.00490003]
[1767348704548,0.00490003,3060.3,3059.1,0.51667629]
[1767348705251,0.48614385,3060.3,3059.1,0.00490003]
[1767348705752,0.16359,3060.2,3059.1,0.00490003]
[1767348708446,0.3241,3060.1,3059.1,0.00490003]
[1767348709155,0.3241,3060.1,3059.1,0.51667629]
[1767348709355,0.3241,3060.1,3059.1,0.00490003]
[1767348709552,0.3241,3060.1,3059.1,0.51667629]
[1767348713347,0.3241,3060.1,3059.1,0.00490003]
[1767348716057,0.3241,3060.1,3059.1,0.52353942]
[1767348717155,0.3241,3060.1,3059.1,0.00490003]
[1767348718756,0.3241,3060.1,3059.1,0.52353942]
[1767348719059,0.00490003,3060.3,3059.1,0.52353942]
[1767348719261,0.00490003,3060.3,3059.1,0.00490003]
[1767348722063,0.55400592,3060.3,3059.1,0.00490003]
[1767348722767,0.3267,3060.2,3059.1,0.00490003]
[1767348723463,0.87580589,3060.2,3059.1,0.00490003]
[1767348723868,0.54910589,3060.1,3059.1,0.00490003]
[1767348725565,0.3267,3060.2,3059.1,0.00490003]
[1767348727467,2.30914406,3061.9,3059.1,0.00490003]
[1767348727468,0.54910589,3061.4,3059.2,0.33338606]
[1767348727672,0.54910589,3061.4,3059.4,3.07302368]
[1767348727862,0.54910589,3061.4,3059.4,0.16363]
[1767348728171,0.54910589,3061.3,3059.5,4.32480799]
[1767348728373,0.54910589,3061.1,3059.1,0.00490003]
[1767348728573,0.55400592,3060.7,3059.1,0.00870941]
[1767348728771,0.55400592,3060.7,3059.2,4.32480799]
[1767348729076,0.55400592,3060.7,3059.1,0.00870941]
[1767348729077,0.54910589,3060.5,3059.1,0.00870941]
[1767348732975,0.54910589,3059.5,3057.5,2.90164409]
[1767348733165,0.54910589,3059.5,3057.6,0.16373]
[1767348733370,0.54910589,3059.5,3057.9,2.90939368]
[1767348734068,0.00490003,3059.0,3058.4,0.00490003]
[1767348734271,0.00490003,3059.0,3057.9,2.91348788]
[1767348734272,0.55400592,3059.0,3057.9,0.0040942]
[1767348734465,0.55400592,3059.0,3057.9,2.91348788]
[1767348734776,0.55400592,3059.0,3057.9,0.0040942]
[1767348735477,0.55400592,3059.0,3058.1,0.00490003]
[1767348735977,0.00490003,3059.0,3058.2,2.90939368]
[1767348736164,0.54910589,3060.1,3058.2,7.16918243]
[1767348736674,0.54910589,3060.0,3058.1,0.00490003]
[1767348737074,0.00490003,3059.4,3058.1,0.00490003]
[1767348737274,0.55400592,3059.4,3058.1,0.00490003]
[1767348737474,0.55400592,3059.4,3058.2,2.90939368]
[1767348737673,0.55400592,3059.4,3058.1,0.00490003]
[1767348739076,0.54910589,3059.2,3058.1,0.00490003]
[1767348741175,0.54910589,3059.1,3058.1,0.00490003]
[1767348741483,0.54910589,3059.1,3058.1,2.91429371]
[1767348741778,0.54910589,3059.0,3058.1,0.00490003]
[1767348741975,0.54910589,3059.0,3057.9,0.0040942]
[1767348742871,0.54910589,3059.0,3058.1,0.00490003]
[1767348743276,0.54910589,3059.0,3057.9,0.0040942]
[1767348743475,0.54910589,3058.7,3057.0,0.44000137]
[1767348743678,0.54910589,3058.7,3057.3,2.90939368]
[1767348744185,0.54910589,3058.6,3057.3,2.90939368]
[1767348744375,0.54910589,3058.6,3057.6,0.00490003]
[1767348744580,0.55184851,3058.6,3057.6,0.00909222]
[1767348745386,0.55184851,3058.6,3057.7,2.90939368]
[1767348745682,0.16642262,3058.6,3057.6,0.00909222]
[1767348745876,0.16642262,3058.6,3057.6,1.17877842]
[1767348746077,0.16642262,3058.6,3057.6,0.00909222]
[1767348746284,4.8,3058.5,3057.6,0.00909222]
[1767348746687,4.8,3058.5,3057.6,1.17877842]
[1767348747186,0.16642262,3058.6,3057.6,1.17877842]
[1767348747487,4.8,3058.5,3057.6,1.17877842]
[1767348748080,0.16368,3058.5,3057.6,1.11509521]
[1767348748284,4.801,3058.4,3057.6,1.11509521]
[1767348748482,4.96469,3058.4,3057.0,0.97378077]
[1767348748683,4.96469,3058.4,3057.3,0.60911697]
[1767348749185,4.96469,3058.4,3057.5,0.00490003]
[1767348749485,4.801,3058.3,3057.5,0.00490003]
[1767348749878,4.801,3058.3,3057.6,0.60911697]
[1767348750186,0.3269,3058.2,3057.6,0.60911697]
[1767348751586,0.3269,3058.2,3057.6,0.60289078]
[1767348753089,0.16372,3057.8,3057.0,0.38309683]
[1767348753978,0.00490003,3057.7,3057.0,0.38592333]
[1767348754185,4.805,3057.6,3057.0,0.38592333]
[1767348754574,0.00490003,3057.7,3057.0,0.38592333]
[1767348754777,0.3269,3058.2,3057.1,0.59068394]
[1767348756288,0.3269,3058.2,3057.0,0.38592333]
[1767348756289,0.00490003,3058.0,3057.4,0.59068394]
[1767348757390,0.3269,3058.2,3057.4,0.59068394]
[1767348758392,0.00274262,3058.6,3057.4,0.59068394]
[1767348759386,0.00490003,3058.3,3057.4,0.59068394]
[1767348763805,0.00274262,3058.6,3057.4,0.59068394]
[1767348763806,0.00274262,3058.6,3057.4,0.75442394]
[1767348764007,0.16363,3059.6,3057.7,0.59068394]
[1767348764800,0.16363,3059.6,3057.8,0.59068394]
[1767348765001,0.1662058,3059.6,3057.8,0.59068394]
[1767348765406,0.16363,3059.5,3057.8,0.59068394]
[1767348765806,0.00490003,3059.0,3057.8,0.59068394]
[1767348767002,0.0025758,3059.6,3057.8,0.59068394]
[1767348768003,0.00319953,3059.0,3057.8,0.59068394]
[1767348768716,0.0025758,3059.6,3057.8,0.59068394]
[1767348768920,0.0025758,3059.6,3057.9,0.59068394]
[1767348769617,0.0025758,3059.6,3058.0,0.59068394]
[1767348769803,0.0025758,3059.6,3058.0,0.75439394]
[1767348770009,0.0025758,3059.6,3058.1,0.59068394]
[1767348773507,0.0025758,3059.6,3058.1,0.75438394]
[1767348773815,0.16359,3060.3,3058.7,0.59068394]
[1767348774017,0.16359,3060.2,3059.2,0.00490003]
[1767348774818,0.16588044,3060.2,3059.2,0.00833034]
[1767348775508,0.00229044,3060.2,3059.2,0.59901428]
[1767348776615,0.16354,3061.2,3059.2,0.59901428]
[1767348776916,0.16354,3061.2,3059.3,0.59295016]
[1767348777116,0.16354,3061.1,3059.3,0.59295016]
[1767348777611,0.16619735,3061.1,3059.3,0.59295016]
[1767348779620,0.16355,3061.0,3059.3,0.59295016]
[1767348779814,0.00265735,3061.1,3059.3,0.59295016]
[1767348780015,0.16619735,3061.1,3059.3,0.59295016]
[1767348780824,0.00265735,3061.1,3059.7,0.59295016]
[1767348782516,0.16355,3061.0,3059.7,0.59295016]
[1767348783518,0.00265735,3061.1,3059.7,0.59295016]
[1767348785511,0.16355,3061.0,3059.7,0.59295016]
[1767348788316,0.16356,3060.8,3059.2,0.6012805]
[1767348797733,0.16357,3060.7,3059.2,0.6012805]
[1767348803537,0.16357,3060.7,3059.3,0.59295016]
[1767348806737,0.16357,3060.7,3059.4,0.6780888]
[1767348806936,0.00265735,3061.1,3059.4,0.6780888]
[1767348807238,0.00265735,3061.1,3060.0,0.6780888]
[1767348814442,0.00265735,3061.1,3060.1,0.6780888]
[1767348816246,0.00265735,3061.1,3060.2,0.6780888]
[1767348817343,0.16351,3061.8,3060.2,0.6780888]
[1767348817550,0.16347,3062.4,3060.3,0.6780888]
[1767348817747,0.16347,3062.4,3060.2,4.59]
[1767348817748,0.16347,3062.4,3061.0,0.68298883]
[1767348818450,0.16349,3062.2,3061.0,0.68298883]
[1767348820240,0.1635,3062.0,3061.0,0.68298883]
[1767348820444,0.1635,3061.9,3061.0,0.00490003]
[1767348821248,0.16351,3061.7,3061.0,0.00490003]
[1767348821448,0.16352,3061.6,3060.2,0.6780888]
[1767348822342,0.00490002,3061.2,3060.6,0.00490003]
[1767348822941,0.00490002,3061.2,3060.6,0.68298883]
[1767348826553,0.16351,3061.8,3060.6,0.68298883]
[1767348827453,0.16682518,3062.4,3060.6,0.68298883]
[1767348827656,0.16682518,3062.4,3060.8,0.6780888]
[1767348828452,0.16348,3062.3,3060.8,0.6780888]
[1767348829359,0.16349,3062.2,3060.8,0.6780888]
[1767348830055,0.00335518,3062.4,3060.8,0.6780888]
[1767348831564,0.1635,3062.0,3060.8,0.6780888]
[1767348831862,0.1635,3061.9,3060.8,0.6780888]
[1767348832064,0.1635,3061.9,3060.6,0.00490003]
[1767348835059,0.00335518,3062.4,3060.6,0.00490003]
[1767348835060,0.16351,3061.8,3060.6,0.00490003]
[1767348836266,0.60585858,3062.3,3060.6,0.00490003]
[1767348836467,3.273,3062.1,3060.6,0.00490003]
[1767348836866,3.88204474,3062.1,3060.6,0.00490003]
[1767348837267,0.61070432,3062.0,3060.6,0.00490003]
[1767348837670,0.16352,3061.6,3060.6,0.00490003]
[1767348837972,0.16353,3061.4,3060.6,0.00490003]
[1767348838363,0.16353,3061.4,3060.1,0.67609078]
[1767348838571,0.16353,3061.3,3060.1,0.67609078]
[1767348839072,0.16353,3061.3,3059.2,0.00343031]
[1767348839073,0.16354,3061.1,3059.6,0.67609078]
[1767348839277,0.16354,3061.1,3060.1,0.00490003]
[1767348839473,0.00490003,3060.9,3060.1,0.00490003]
[1767348839772,0.00490003,3060.9,3059.6,0.67609078]
[1767348839980,0.00490003,3060.9,3059.9,0.00490003]
[1767348840573,0.00490003,3060.9,3060.1,0.00490003]
[1767348840775,0.00490003,3060.9,3060.1,0.68099081]
[1767348843279,0.00490003,3060.9,3060.1,0.00490003]
[1767348844782,0.16846003,3060.9,3060.1,0.00490003]
[1767348845085,0.16356,3060.8,3060.1,0.00490003]
[1767348847779,0.16356,3060.8,3059.7,0.67609078]
[1767348848788,0.16356,3060.8,3059.9,0.00490003]
[1767348850583,0.16356,3060.7,3059.9,0.00490003]
[1767348850984,0.16356,3060.7,3059.9,0.68099081]
[1767348854297,0.00490003,3060.9,3059.9,0.68099081]
[1767348869501,0.16353,3061.3,3059.9,0.68099081]
[1767348870596,0.00490003,3060.9,3059.9,0.68099081]
[1767348871098,0.16351,3061.8,3060.1,0.68657069]
[1767348871907,0.00490003,3061.3,3060.1,0.68657069]
[1767348872603,0.00490003,3061.3,3060.3,0.68657069]
[1767348873302,0.74636882,3061.2,3060.3,0.68657069]
[1767348874305,0.74636882,3060.9,3060.3,0.68657069]
[1767348874507,0.75126885,3061.3,3060.3,0.68657069]
[1767348878210,0.68812497,3062.4,3060.8,0.74636882]
[1767348878514,0.68812497,3062.4,3060.6,0.68657069]
[1767348878515,0.1635,3062.0,3060.6,0.68657069]
[1767348883518,0.68812497,3062.4,3060.6,0.68657069]
[1767348883715,0.68812497,3062.4,3060.7,0.68657069]
[1767348884720,0.85159497,3062.4,3060.7,0.68657069]
[1767348885022,0.84814979,3064.3,3061.3,0.68657069]
[1767348885316,0.68476979,3064.0,3062.4,0.00490003]
[1767348885910,1.01106979,3063.9,3062.4,0.00490003]
[1767348886107,0.68476979,3063.8,3062.4,0.00866141]
[1767348889522,0.84816979,3063.8,3062.4,0.00866141]
[1767348891425,5.62116979,3063.8,3062.4,0.00866141]
[1767348891626,0.68476979,3063.7,3062.4,0.00866141]
[1767348897823,0.84816979,3063.7,3062.4,0.00866141]
[1767348898129,6.24344614,3063.9,3062.4,0.00866141]
[1767348898130,0.72639978,3063.3,3062.4,0.00866141]
[1767348898627,0.72639978,3063.3,3061.7,2.2996182]
[1767348899719,0.72639978,3062.7,3062.2,0.00490003]
[1767348900124,0.72639978,3063.4,3062.2,6.00490003]
[1767348900319,0.72639978,3063.4,3062.2,0.00490003]
[1767348900922,0.72639978,3063.2,3062.2,0.00490003]
[1767348901226,0.72639978,3063.0,3061.7,0.00333881]
[1767348902031,0.00490003,3062.7,3062.0,0.00490003]
[1767348903131,0.73129981,3062.7,3062.0,0.00490003]
[1767348904022,0.00490003,3062.7,3062.0,0.00490003]
[1767348905723,4.768,3063.4,3062.0,0.00490003]
[1767348905921,0.16338,3064.1,3062.1,6.47549467]
[1767348906123,0.16338,3064.1,3062.4,2.2996182]
[1767348906322,1.39955196,3065.2,3062.4,2.2996182]
[1767348906323,0.72639978,3064.7,3062.5,2.2996182]
[1767348906528,0.88974978,3064.7,3062.9,2.2996182]
[1767348906724,0.72639978,3064.7,3063.5,0.00490003]
[1767348907225,0.72639978,3065.3,3063.6,2.2996182]
[1767348907425,0.7303214,3065.3,3063.7,2.2996182]
[1767348908230,0.7303214,3065.3,3063.5,0.00490003]
[1767348908624,0.00392162,3065.3,3063.7,1.14169742]
[1767348908831,0.72639978,3065.8,3064.1,2.2996182]
[1767348909028,0.72639978,3065.8,3064.6,0.00490003]
[1767348909226,0.72639978,3066.8,3064.6,0.00490003]
[1767348909529,0.72639978,3065.9,3064.6,0.00490003]
[1767348909729,0.72984714,3065.9,3064.6,0.00742209]
[1767348910428,0.72639978,3065.7,3064.6,0.00742209]
[1767348913446,0.72639978,3065.3,3063.2,2.2996182]
[1767348913742,0.72639978,3065.3,3063.5,4.30889813]
[1767348914139,0.72639978,3065.3,3063.4,1.14169742]
[1767348914335,0.72639978,3065.3,3063.6,4.30889813]
[1767348914540,0.00490003,3064.8,3064.1,0.00490003]
[1767348914736,0.73129981,3064.8,3064.1,0.00490003]
[1767348914947,0.72639978,3065.6,3064.2,6.0]
[1767348915138,0.72639978,3065.6,3064.1,0.00490003]
[1767348916045,0.72639978,3065.4,3064.1,0.00490003]
[1767348916251,0.72639978,3065.2,3064.1,0.00490003]
[1767348916546,0.88973978,3065.0,3064.1,0.00490003]
[1767348918142,0.72639978,3065.0,3064.1,0.00490003]
[1767348923349,3.266,3065.4,3064.1,0.00490003]
[1767348923652,0.2523,3065.8,3064.4,1.71820799]
[1767348923854,0.2523,3065.8,3064.3,1.71820799]
[1767348924054,0.2523,3065.8,3064.4,1.71820799]
[1767348924256,0.72639978,3066.8,3064.5,1.7523048]
[1767348924551,0.72639978,3066.8,3065.3,0.00490003]
[1767348924953,0.72639978,3066.8,3065.5,1.71820799]
[1767348925146,0.72639978,3066.8,3065.4,6.00603801]
[1767348925352,0.73031254,3066.8,3065.4,1.71820799]
[1767348927149,0.73031254,3066.8,3065.3,0.00490003]
[1767348927558,0.76421916,3067.3,3065.4,4.44413469]
[1767348927754,0.76421916,3067.1,3065.4,4.28082469]
[1767348928051,0.92743916,3067.1,3065.4,4.28082469]
[1767348928453,0.326,3067.0,3065.4,4.28082469]
[1767348929463,0.326,3067.0,3065.5,0.1633]
[1767348929848,0.326,3067.0,3065.6,4.31511409]
[1767348930151,0.326,3067.0,3065.6,4.31747204]
[1767348930743,1.09021916,3067.0,3065.6,4.31747204]
[1767348930954,0.76421916,3066.9,3065.6,0.00235795]
[1767348931149,0.48923,3067.0,3065.6,0.00235795]
[1767348931357,0.48923,3067.0,3065.7,4.23104753]
[1767348931358,0.76421916,3066.9,3065.7,4.23104753]
[1767348931656,0.76421916,3066.9,3065.6,0.00235795]
[1767348932449,0.92745916,3066.9,3065.6,0.00235795]
[1767348932645,0.76421916,3066.7,3065.6,0.00235795]
[1767348932852,0.326,3067.0,3064.8,1.40584956]
[1767348932853,0.76421916,3066.4,3064.8,1.40584956]
[1767348933155,0.76421916,3066.4,3065.0,0.00725798]
[1767348933551,0.76421916,3066.2,3065.1,0.00725798]
[1767348933753,0.92748916,3066.2,3065.1,0.00725798]
[1767348933958,0.00487287,3066.5,3065.1,0.00725798]
[1767348933959,0.76421916,3066.4,3065.3,0.00489189]
[1767348934855,0.76421916,3066.4,3065.4,0.00725798]
[1767348935255,0.76421916,3066.4,3065.2,0.01491456]
[1767348936061,0.92747916,3066.4,3065.2,0.01491456]
[1767348936263,0.92747916,3066.4,3065.5,0.00489189]
[1767348936665,0.92747916,3066.4,3064.6,4.17542923]
[1767348936962,0.76421916,3066.4,3065.1,0.02223674]
[1767348937164,0.76421916,3066.4,3064.6,4.19766597]
[1767348937455,0.76421916,3066.4,3065.2,4.24469906]
[1767348937656,0.76421916,3066.4,3065.5,0.00489189]
[1767348937852,0.76421916,3066.4,3065.7,0.02223674]
[1767348938350,0.76421916,3066.4,3066.0,0.02223674]
[1767348938656,0.00487287,3066.5,3066.2,0.02223674]
[1767348938855,0.76421916,3066.9,3066.2,0.02223674]
[1767348939059,0.76421916,3066.9,3065.6,4.29692568]
[1767348939262,0.76421916,3066.9,3065.5,0.00489189]
[1767348940263,0.00489189,3066.5,3065.5,0.00489189]
[1767348940763,0.00489189,3066.5,3065.6,4.32843342]
[1767348941657,0.00489189,3066.5,3065.5,0.00489189]
[1767348943764,0.76911105,3066.5,3065.5,0.00489189]
[1767348944958,0.326,3067.0,3065.2,0.0025871]
[1767348944959,0.16326,3066.4,3065.2,0.0025871]
[1767348945155,0.326,3067.0,3064.4,2.2996182]
[1767348945361,0.326,3067.0,3064.8,0.00747899]
[1767348945662,3.26822833,3067.1,3064.5,4.23795966]
[1767348946171,0.00489189,3066.1,3064.5,0.00264318]
[1767348946662,0.00489189,3066.1,3064.6,0.00747899]
[1767348946969,0.76911105,3066.1,3064.6,4.19931226]
[1767348947172,0.76911105,3066.1,3065.0,0.00489189]
[1767348948773,0.3261,3066.0,3065.0,0.00489189]
[1767348949274,0.24495634,3066.0,3065.3,2.2996182]
[1767348949670,0.76421916,3065.9,3065.7,0.00747899]
[1767348949969,0.76421916,3065.9,3065.2,2.2996182]
[1767348950168,0.24495634,3066.0,3065.2,2.2996182]
[1767348951073,0.24495634,3066.0,3065.3,2.2996182]
[1767348951273,0.24495634,3066.0,3065.4,2.2996182]
[1767348951481,0.00489189,3066.1,3065.4,2.2996182]
[1767348952179,0.00489189,3066.1,3065.5,2.2996182]
[1767348952576,0.76421916,3066.9,3065.6,2.2996182]
[1767348952778,0.76421916,3066.9,3065.7,2.2996182]
[1767348953276,0.76421916,3066.9,3065.8,2.2996182]
[1767348953668,0.76421916,3066.6,3065.8,2.2996182]
[1767348954179,0.76421916,3066.6,3065.9,2.2996182]
[1767348954575,0.76421916,3066.6,3065.5,2.8962299]
[1767348954576,0.76421916,3066.6,3065.8,2.2996182]
[1767348955878,0.76421916,3066.6,3065.7,2.2996182]
[1767348956477,0.76421916,3066.6,3065.6,2.2996182]
[1767348956681,0.76421916,3066.6,3065.5,2.2996182]
[1767348957083,0.84411297,3066.4,3065.4,2.2996182]
[1767348957280,0.84411297,3066.4,3065.3,2.2996182]
[1767348957478,0.84411297,3066.4,3065.2,2.2996182]
[1767348958283,0.84411297,3066.4,3065.3,2.2996182]
[1767348960486,0.00489189,3066.7,3065.9,2.2996182]
[1767348960682,0.00489189,3066.7,3065.4,4.16611734]
[1767348960683,0.00422833,3067.1,3066.0,2.2996182]
[1767348960883,0.84411297,3067.9,3066.6,2.2996182]
[1767348961180,2.67342112,3069.9,3066.1,7.4602299]
[1767348961181,40.1,3071.5,3067.8,2.49680404]
[1767348961384,40.1,3071.5,3068.3,2.29472904]
[1767348961385,1.28924854,3071.2,3068.3,2.29472904]
[1767348961587,0.16307,3070.0,3067.9,4.22214376]
[1767348961776,0.00489189,3069.3,3068.6,0.00489189]
[1767348961978,0.00350222,3070.0,3068.6,0.00489189]
[1767348962179,0.00350222,3070.0,3068.7,4.18994168]
[1767348962684,3.264,3071.4,3068.8,4.2746823]
[1767348962887,3.264,3071.4,3069.0,2.29472904]
[1767348962888,3.2632,3071.4,3069.0,2.29472904]
[1767348963082,0.84411297,3071.3,3068.7,8.8396823]
[1767348963285,0.84411297,3071.1,3068.6,0.00489189]
[1767348963485,0.84411297,3071.1,3069.1,4.2746823]
[1767348963678,0.8466123,3071.1,3068.7,4.2746823]
[1767348963880,0.8466123,3071.1,3068.6,0.00489189]
[1767348964186,1.00714297,3070.7,3068.7,4.21089088]
[1767348964379,0.84411297,3070.5,3068.7,4.21089088]
[1767348964580,0.84411297,3070.5,3068.6,0.00489189]
[1767348964779,1.00717297,3070.2,3068.6,0.00489189]
[1767348965183,0.84411297,3069.7,3068.6,0.00489189]
[1767348965386,0.84411297,3069.5,3067.9,0.003273]
[1767348965580,9.263,3070.3,3067.9,0.003273]
[1767348965581,0.84411297,3069.2,3067.9,0.003273]
[1767348965886,0.84411297,3068.9,3066.2,2.29472904]
[1767348966092,1.00724297,3068.9,3066.2,3.543]
[1767348966291,0.84411297,3068.7,3066.7,4.2867615]
[1767348966591,0.84411297,3067.9,3065.5,6.85672904]
[1767348966801,0.84752506,3067.9,3065.5,4.56504418]
[1767348966980,0.84752506,3067.9,3066.3,4.16564148]
[1767348967177,0.84752506,3067.9,3065.6,4.16564148]
[1767348967387,0.84752506,3067.9,3065.7,4.562]
[1767348967588,0.84752506,3067.9,3066.5,0.00489189]
[1767348967890,1.01070506,3067.9,3066.5,0.00489189]
[1767348969587,0.84411297,3066.0,3064.6,1.43793469]
[1767348969785,1.00740297,3066.0,3063.3,4.92870214]
[1767348970083,0.84411297,3066.0,3063.6,0.03176457]
[1767348970486,0.84411297,3066.0,3064.5,0.00489189]
[1767348970487,0.00489189,3065.1,3064.5,0.00489189]
[1767348970685,0.00769673,3065.1,3064.5,0.00489189]
[1767348970878,0.00669673,3065.1,3064.5,0.00489189]
[1767348971684,4.29536556,3069.7,3064.5,6.00489189]
[1767348971890,0.84411297,3066.9,3064.7,0.16335]
[1767348972081,0.84411297,3066.9,3064.6,4.91315161]
[1767348972281,0.84411297,3066.9,3064.8,4.26715161]
[1767348972492,0.84411297,3066.9,3064.7,4.26715161]
[1767348972682,0.84411297,3066.9,3064.8,4.563]
[1767348972890,0.00489189,3066.1,3065.5,0.00489189]
[1767348974898,0.84683096,3066.9,3065.5,0.00489189]
[1767348975392,1.01005096,3066.9,3065.5,0.00489189]
[1767348975691,0.84411297,3066.7,3065.5,0.00489189]
[1767348975895,0.00271799,3066.9,3065.5,0.00489189]
[1767348975896,0.84411297,3066.3,3065.5,0.00489189]
[1767348977194,0.00489189,3066.4,3065.5,0.00489189]
[1767348980995,0.00271799,3066.9,3065.6,10.14392636]
[1767348981202,0.84411297,3067.9,3065.6,6.4386554]
[1767348981500,0.84411297,3067.9,3065.7,2.29472904]
[1767348981694,0.84411297,3067.9,3065.8,4.563]
[1767348981894,0.84411297,3067.9,3066.0,0.16326]
[1767348982393,0.84649828,3067.9,3066.1,4.23657077]
[1767348982699,0.84649828,3067.9,3066.4,0.16324]
[1767348982889,0.84649828,3067.9,3066.5,4.565]
[1767348983094,0.84649828,3067.9,3066.5,8.76177638]
[1767348983505,0.84649828,3067.9,3066.5,4.19677638]
[1767348983697,0.84649828,3067.9,3066.6,4.566]
[1767348984103,0.84649828,3067.9,3066.4,0.16324]
[1767348984599,0.84683096,3067.3,3066.0,2.2988468]
[1767348984804,0.16555531,3067.9,3066.0,2.2988468]
[1767348984805,0.84411297,3066.9,3066.0,0.00411776]
[1767348985599,0.3259,3066.8,3066.0,0.00411776]
[1767348985902,1.1227635,3066.8,3066.0,0.00411776]
[1767348986104,0.7968635,3066.7,3065.5,0.00489189]
[1767348986505,0.79958149,3066.7,3065.5,0.00489189]
[1767348987100,0.79958149,3066.7,3065.5,0.00781748]
[1767348987500,0.7968635,3066.7,3065.5,0.00781748]
[1767348987897,0.82214444,3066.5,3065.5,0.00781748]
[1767348989202,0.82214444,3066.3,3065.5,0.00781748]
[1767348989403,0.82214444,3066.3,3064.6,15.90477637]
[1767348989710,0.82214444,3066.3,3064.7,4.22624432]
[1767348990410,0.00489189,3065.8,3065.2,0.00489189]
[1767348990804,0.82214444,3066.3,3065.2,0.00489189]
[1767348992907,0.82486243,3066.3,3065.2,0.00489189]
[1767348994010,0.98811243,3066.3,3065.2,0.00489189]
[1767348994516,0.82214444,3066.1,3065.2,0.00489189]
[1767348996911,0.82214444,3065.5,3065.2,0.00489189]